Cogmind - Beta 13 @@@ ROGUE MODE // 2024.04.24 @ 20:29:27 Player: AntinDisguise Result: Destroyed by G-47 Trooper with Particle Gun Performance ------------- Evolutions (0) 0 Regions Visited (1) 200 Robots Destroyed (10) 50 Value Destroyed (339) 339 Prototype IDs (1) 20 Alien Tech Used (0) 0 Bonus (0) 0 TOTAL SCORE: 609 Bonus ------- None Cogmind --------- Core Integrity 0/250 Matter 300/300 Energy 100/100 System Corruption 1% Temperature Cool (9) Movement Core (350) Ox6 Location -10/Materials Parts ------- > --- POWER (1) -------- (None) > --- PROPULSION (2) --- (None) > --- UTILITY (2) ------ Improved Heat Sink Large Storage Unit > --- WEAPON (2) ------- (None) > --- INVENTORY (15) --- Light Nuclear Core Light Treads Light Treads Light Treads Peak State ------------ > --- POWER ------------ Light Nuclear Core > --- PROPULSION ------- Compact Wheel > --- UTILITY ---------- Improved Heat Sink Large Storage Unit > --- WEAPON ----------- Improved Medium Laser Assault Rifle > --- INVENTORY -------- Light Treads Light Treads Light Treads Grenade Launcher [Rating: 12] Favorites ----------- Power Light Ion Engine Engine Light Ion Engine Power Core Light Nuclear Core Propulsion Compact Wheel Wheel Compact Wheel Utility Large Storage Unit Device Improved Heat Sink Storage Large Storage Unit Protection Light Armor Plating Weapon Improved Medium Laser Energy Gun Improved Medium Laser Ballistic Gun Assault Rifle Launcher Grenade Launcher Build | -11 -10 ------- Run | Yrd Mat Slots Evolved . | . . Power . | . . Propulsion . | . . Utility . | . . Weapon . | . . Parts Attached 17 | 6 11 Power 2 | 1 1 Engine 1 | 1 . Core 1 | . 1 Reactor . | . . Propulsion 2 | 2 . Treads . | . . Leg . | . . Wheel 2 | 2 . Hover . | . . Flight . | . . Utility 4 | 1 3 Device 1 | . 1 Storage 2 | 1 1 Processor . | . . Hackware . | . . Protection 1 | . 1 Artifact . | . . Weapon 9 | 2 7 Energy Gun 4 | 1 3 Energy Cannon . | . . Ballistic Gun 3 | 1 2 Ballistic Cannon . | . . Launcher 2 | . 2 Special Weapon . | . . Impact Weapon . | . . Slashing Weapon . | . . Piercing Weapon . | . . Special Melee Weapon . | . . Unidentified Prototypes 1 | . 1 Parts Lost 9 | . 9 Power 2 | . 2 Propulsion 2 | . 2 Utility 1 | . 1 Weapon 4 | . 4 Highest Loss Streak 5 | . 5 To Critical Strikes . | . . Average Slot Usage (%) 82 | . 82 Engine 8 | . 8 Core 4 | . 4 Wheel 21 | . 21 Device 4 | . 4 Storage 14 | . 14 Protection 1 | . 1 Energy Gun 20 | . 20 Ballistic Gun 6 | . 6 Naked Turns . | . . Heaviest Build 32 | 12 32 Greatest Support 26 | 26 26 Greatest Overweight (x) 6 | . 6 Average Overweight (x) . | . . Largest Inventory Capacity 15 | 8 15 Average Capacity 12 | 7 13 Most Carried 7 | 5 7 Average Carried 4 | 2 4 Final Capacity 15 | 8 15 Final Carried 4 | 2 4 Class Distribution -------------------- 100% | Mutant Dominant Class ---------------- Mutant | -10/Materials Resources | -11 -10 ----------- Run | Yrd Mat Matter Collected 452 | 263 189 Remotely . | . . Salvage Created 311 | 12 299 Parts 15 | 2 13 Haulers Intercepted . | . . Recyclers Shooed . | . . Parts Field Recycled . | . . Retrieved Matter . | . . Parts Self-Destructed . | . . Prevented . | . . Kills | -11 -10 ------- Run | Yrd Mat Combat Hostiles Destroyed 9 | . 9 Guns 6 | . 6 AOE 3 | . 3 Classes Destroyed 2 | 1 1 Tunneler 1 | 1 . Grunt 9 | . 9 Best Kill Streak 4 | 1 4 Combat Bots Only 4 | . 4 Max Kills in Single Turn 3 | 1 3 Gunslinging . | . . Exploded 3 | . 3 Melee . | . . Uniques/NPCs Destroyed . | . . Combat | -11 -10 -------- Run | Yrd Mat Hostile Shots Fired 93 | . 93 Missed 19 | . 19 Damage Taken 1049 | . 1049 Core 264 | . 264 Absorbed by Shields . | . . Core Remaining (%) 100 | 100 . Volleys Fired 28 | 1 27 Largest 2 | 2 2 Hottest 112 | 70 112 Shots Fired 50 | 2 48 Gun 48 | 2 46 Cannon . | . . Launcher 2 | . 2 Special . | . . Kinetic 14 | 1 13 Thermal 34 | 1 33 Explosive 2 | . 2 Electromagnetic . | . . Robot Hit Streak 10 | 1 10 Robot Miss Streak 4 | . 4 Penetration Max . | . . Secondary Targets 3 | . 3 Max Gunslinging Chain 1 | . 1 Shots Hit Robots 34 | 1 33 Core Hits 18 | 1 17 Critical Kills . | . . Critical Parts Destroyed . | . . Critical Strikes 1 | . 1 Burn 1 | . 1 Melee Attacks . | . . Impact . | . . Slashing . | . . Piercing . | . . Sneak Attacks . | . . Combat Hostiles . | . . Follow-up Attacks . | . . Damage Inflicted 858 | 12 846 Guns 500 | 12 488 Cannons . | . . Explosions 358 | . 358 Melee . | . . Ramming . | . . Kinetic 105 | . 105 Thermal 395 | 12 383 Explosive 358 | . 358 Electromagnetic . | . . Impact . | . . Slashing . | . . Piercing . | . . Highest Corruption 1 | . 1 Average Corruption 1 | . 1 Corruption Purged . | . . Corruption Blocked . | . . Effects 1 | . 1 Message Errors 1 | . 1 Overload Shots . | . . Overflow Damage . | . . Projectiles . | . . Explosions . | . . Melee . | . . Knockbacks . | . . Impact . | . . Kinetic . | . . Secondary . | . . Self-Inflicted Damage 8 | . 8 Shots 1 | . 1 Rammed . | . . Targets Rammed . | . . Kicked . | . . Crushed . | . . Highest Temperature 518 | 9 518 Average Temperature 246 | 6 254 Received Heat Transfer 561 | . 561 Effects 10 | . 10 Shutdowns 3 | . 3 Energy Bleed 3 | . 3 Interference 2 | . 2 Matter Decay 1 | . 1 Short Circuit 1 | . 1 Siege Activations . | . . Robots Corrupted . | . . Combat Hostiles . | . . Parts Fried . | . . Impact Corruptions . | . . Robots Melted . | . . Combat Hostiles . | . . Parts Melted 2 | . 2 Heat Transferred 962 | 37 925 Parts Sabotaged . | . . Parts Stolen . | . . Parts Stripped . | . . Power Chain Reactions . | . . Alert | -11 -10 ------- Run | Yrd Mat Peak Influence 203 | 5 203 Initial 3 | . 3 Average 48 | . 56 Maximum Alert Level 1 | . 1 Low Security (%) 99 | 100 99 Level 1 . | . . Level 2 . | . . Level 3 . | . . Level 4 . | . . Level 5 . | . . High Security . | . . Max Security . | . . Squads Dispatched 3 | . 3 Investigation 2 | . 2 Extermination . | . . Reinforcement 1 | . 1 Assault . | . . Garrison . | . . Intercept . | . . Searches Triggered . | . . Construction Impeded . | . . Haulers Reinforced . | . . Active Scanning Responses . | . . Cargo Convoy Interrupts . | . . Stealth | -11 -10 --------- Run | Yrd Mat Distress Signals 1 | . 1 Communications Jammed . | . . Distress Signals . | . . Times Spotted 16 | . 16 Peak Tracking Total 7 | . 7 Tactical Retreats 2 | . 2 Traps | -11 -10 ------- Run | Yrd Mat Traps Triggered 3 | . 3 Indirectly . | . . Trap Hack Attempts . | . . Triggered . | . . Disarmed . | . . Reprogrammed . | . . Reused . | . . Traps Extracted . | . . Installed . | . . Triggered . | . . Machines | -11 -10 ---------- Run | Yrd Mat Machines Disabled . | . . Max in Single Turn . | . . Machines Repaired . | . . Machines Dismantled . | . . Machines Sabotaged . | . . Overloaded Fab Kills . | . . Hacking | -11 -10 --------- Run | Yrd Mat Machines Accessed 1 | . 1 Terminals . | . . Fabricators . | . . Repair Stations . | . . Recycling Units 1 | . 1 Scanalyzers . | . . Garrison Access . | . . Total Hacks 1 | . 1 Successful 1 | . 1 Failed . | . . Catastrophic . | . . Database Lockouts . | . . Manual . | . . Terminals . | . . Fabricators . | . . Repair Stations . | . . Recycling Units 1 | . 1 Scanalyzers . | . . Garrison Access . | . . Terminal Hacks . | . . Fabricator Hacks . | . . Repair Station Hacks . | . . Recycling Unit Hacks 1 | . 1 Process 1 | . 1 Scanalyzer . | . . Garrison Access Hacks . | . . Unauthorized Hacks . | . . Terminals . | . . Fabricators . | . . Repair Stations . | . . Recycling Units . | . . Scanalyzers . | . . Garrison Access . | . . Data Cores Recovered . | . . Used . | . . Hacking Detections 1 | . 1 Full Trace Events . | . . Feedback Events . | . . Feedback Blocked . | . . Robot Schematics Acquired . | . . Robots Built . | . . Authchips . | . . Time . | . . Total Robot Build Rating . | . . Part Schematics Acquired . | . . Parts Built . | . . Authchips . | . . Time . | . . Total Part Build Rating . | . . Parts Repaired . | . . Time . | . . Parts Recycled . | . . Recycled Matter . | . . Retrieved Matter . | . . Retrieved Components . | . . Parts Scanalyzed . | . . Part Schematics Acquired . | . . Parts Damaged . | . . Bothacking | -11 -10 ------------ Run | Yrd Mat Used RIF Installer . | . . Robots Hacked . | . . Non-combat . | . . Combat . | . . Robot Hacks Applied . | . . Relay Couplers Released . | . . Fabnet Peak Effective % . | . . Robots Rewired . | . . Allies Hacked . | . . Hacks Repelled . | . . Allies | -11 -10 -------- Run | Yrd Mat Total Allies . | . . Largest Group . | . . Highest-Rated Group . | . . Highest-Rated Ally . | . . Total Orders . | . . Ally Attacks . | . . Total Damage . | . . Kills . | . . Allies Corrupted . | . . Allies Melted . | . . Intel | -11 -10 ------- Run | Yrd Mat Robot Analysis Total . | . . Derelict Logs Recovered . | . . Drone Launches . | . . Drone Recoveries . | . . Exploration | -11 -10 ------------- Run | Yrd Mat Turns Passed 396 | 58 338 Spaces Moved 280 | 49 231 Core 10 | 9 1 Treads . | . . Legs . | . . Wheels 270 | 40 230 Hover . | . . Flight . | . . Fastest Speed 50 | 50 90 Average Speed 100 | 85 103 Slowest Speed 350 | 100 350 Overloaded Moves . | . . Propulsion Burnouts . | . . Robots Hopped . | . . Cave-ins Triggered . | . . Exploration Rate (%) 25 | 3 47 Regions Visited 1 Branch Regions . Pre-discovered Areas . | . . Known Exits Taken . | . . Unknown Exits Taken 1 | 1 . Scrap Searched . | . . Spaces Dug . | . . Terrain Destroyed 7 | . 7 Melee . | . . Projectile . | . . AOE 7 | . 7 Terrain Rammed . | . . Walls Destroyed . | . . Machines Disabled . | . . Actions | -11 -10 --------- Run | Yrd Mat Total 346 | 63 283 Wait 3 | . 3 Move 279 | 48 231 Hop . | . . Pick Up 17 | 8 9 Fast Attach . | . . Attach 13 | 6 7 Detach . | . . Swap 4 | . 4 Drop 2 | . 2 Fire 28 | 1 27 Melee . | . . Ram . | . . Kick . | . . Crush . | . . Escape Stasis . | . . Rewire . | . . Trap . | . . Miscellaneous . | . . Route ------- -11/Scrapyard -10/Materials (discovered 2 exits: [*Mat] / [*Min]) History --------- Turn | Location | Event 2 | -11/Scrapyard | Met Revision 17 8 | -11/Scrapyard | Discovered new exit (range 16) 59 | -11/Scrapyard | Entered Materials 204 | -10/Materials | Discovered new exit (range 6) 278 | -10/Materials | Core integrity fell below 50% 309 | -10/Materials | Lost 4 parts (1p1n1u1w) 319 | -10/Materials | Build established: Mutant 357 | -10/Materials | Discovered new exit (range 3) 382 | -10/Materials | Core integrity fell below 20% 397 | -10/Materials | Destroyed by G-47 Trooper with Particle Gun Last Messages --------------- ALERT: Alarm triggered, dispatching investigation squad. Connecting with Terminal... ALERT: Hostiles spotted, dispatching reinforcements to Terminal M003. G-34 Mercenary destroyed. Switching to secondary target: G-34 Mercenary. Com. Wheel destroyed. Critical hit (Burn: +37). Ion Engine melted. Heat Sink melted. G-34 Mercenary destroyed. Switching to secondary target: G-47 Trooper. Imp. Medium Laser destroyed. Lgt. Nuclear Core destroyed. Grenade Launcher destroyed. Critical hit (Burn: +37). G-34 Mercenary destroyed. Assault Rifle destroyed. Acquired 41 matter. Map ----- +----------------------------------------------------+ | | | | | | | | | | | | | | | | | | | | | | | | | | | ?????????????????????????????????????????????????? | | ?????????????????????????????????????????????????? | | ?????????????????????????????????????????????????? | | ???????????????????????????????????????########### | | ???????????????????????????????????##### ! # | | ???????????????????????????????????# # # | | ???????????????????????????????????# < # """ """ # | | ???????????????????????###+###?????# # """ """ # | | ???????????????????????# ####### + """ """ # | | ???????????????????????# = g[ # # | | ???????????????????????# T [% # # | | ???????????????????????# g # # | | ???????????????????????#g@ ####### #########+# | | ???????????????????????# #####?????# #???????# # | | ???????????????????????# ??????????# #???????# # | | ???????????????????????#???????????# #???????# | | ???????????????????????????????????# ######### | | ???????????????????????????????????# + ## | | ???????????????????????????????????# # + | | ???????????????????????????????????### # """ ## | | ?????????????????????????????????????? # """ ## | | ?????????????????????????????????????# # """ ## | | ?????????????????????????????????????# # ## | | ?????????????????????????????????????# ###+##### | | ?????????????????????????????????????# | | ?????????????????????????????????##### | | ?????????????????????????? | | ?????????????????????????? ###+######## | | ?????????????????????????? ?# #??# | | ???????????????????????????? ??# #??# | | ?????????????????????????????######???# #### | | ??????????????????????????????????????# """ + | | ??????????????????????????????????????# """ #### | | ??????????????????????????????????????# """ #??? | | ??????????????????????????????????????# #??? | | ??????????????????????????????????????# """ #??? | | ??????????????????????????????????????# """ #?## | +----------------------------------------------------+ Best States ------------- Heat Dissipation 39 Energy Generation 14 Energy Capacity 160 Matter Stores 300 Matter Capacity 300 Sight Range 16 Terrain Scan Density 10 Armor Coverage 150 Evasion (%) 42 Item Schematics ----------------- None Robot Schematics ------------------ None Fabricated ------------ Nothing Alien Tech Used ----------------- None Achievements -------------- None Challenges ------------ None Game ------ Seed PowerSpectralStorm Manual? 0 Play Time 00:07:53 Cumulative 26.0 hours Start 2024.04.24 @ 20:24:54 End 2024.04.24 @ 20:29:27 Sessions 1 Manual Loads 0 Difficulty Rogue Special Mode None Game No. 71 Rogue 69 Adventurer 2 Explorer 0 Win Type - Total 0 Types 0/0/0/0/0/0/0/0/0 Lore% 22 Gallery% 30 Achievement% 23 Wizard Run 0 Options --------- Layout 1 ASCII 0 Keyboard 0 Movement Mouse Keybinds 0 Fullscreen 1 Font 16/SmallcapsGlow Map View 27x19 Zoom Use 98% Tactical HUD 0 Map Filters NONE Filters NONE Steam 1 RUN: 46972495-1c74-49d7-b7c8-f73061c61179